[Event "TePe Sigeman Chess Tournament 2026"]
[Site "Elite Plaza Hotel, Gustav Adolfs Torg 49, Malmo, Sweden"]
[Date "2026.05.05"]
[Round "5.1"]
[White "Erigaisi, Arjun"]
[Black "Van Foreest, Jorden"]
[Result "1-0"]
[TimeControl "90 minutes for 40 moves + 30 minutes for the rest of the game + 30 seconds per move from move one."]
[WhiteTitle "GM"]
[BlackTitle "GM"]
[WhiteFideId "35009192"]
[BlackFideId "1039784"]
[WhiteElo "2751"]
[BlackElo "2735"]

1. d4 {[%clk 01:30:55]} {[%emt 00:00:05]} d5 {[%clk 01:30:50]} {[%emt
00:00:09]} 2. c4 {[%clk 01:31:20]} {[%emt 00:00:06]} c6 {[%clk 01:31:08]}
{[%emt 00:00:12]} 3. Nf3 {[%clk 01:31:42]} {[%emt 00:00:08]} Nf6 {[%clk
01:31:23]} {[%emt 00:00:14]} 4. Qb3 {[%clk 01:32:06]} {[%emt 00:00:07]} h6
{[%clk 01:31:46]} {[%emt 00:00:07]} 5. Nc3 {[%clk 01:31:56]} {[%emt 00:00:39]}
dxc4 {[%clk 01:32:09]} {[%emt 00:00:08]} 6. Qxc4 {[%clk 01:32:22]} {[%emt
00:00:05]} Bf5 {[%clk 01:32:31]} {[%emt 00:00:08]} 7. Ne5 {[%clk 01:18:20]}
{[%emt 00:14:32]} e6 {[%clk 01:26:10]} {[%emt 00:06:51]} 8. a4 {[%clk
01:18:26]} {[%emt 00:00:25]} Nbd7 {[%clk 01:04:04]} {[%emt 00:22:35]} 9. Nxd7
{[%clk 01:15:34]} {[%emt 00:03:22]} Qxd7 {[%clk 01:03:31]} {[%emt 00:01:03]} 10.
f3 {[%clk 01:14:08]} {[%emt 00:01:56]} a5 {[%clk 01:01:36]} {[%emt 00:02:26]}
11. e4 {[%clk 01:12:49]} {[%emt 00:01:49]} Bh7 {[%clk 01:00:32]} {[%emt
00:01:33]} 12. Bf4 {[%clk 01:03:17]} {[%emt 00:10:02]} Bb4 {[%clk 01:00:10]}
{[%emt 00:00:53]} 13. Be2 {[%clk 01:03:04]} {[%emt 00:00:43]} O-O {[%clk
00:56:56]} {[%emt 00:03:44]} 14. O-O {[%clk 01:03:23]} {[%emt 00:00:12]} Kh8
{[%clk 00:55:45]} {[%emt 00:01:40]} 15. Rfd1 {[%clk 00:57:00]} {[%emt
00:06:53]} Ng8 {[%clk 00:45:34]} {[%emt 00:10:42]} 16. Na2 {[%clk 00:55:38]}
{[%emt 00:01:52]} Bd6 {[%clk 00:45:06]} {[%emt 00:00:57]} 17. Bxd6 {[%clk
00:54:58]} {[%emt 00:01:11]} Qxd6 {[%clk 00:45:32]} {[%emt 00:00:04]} 18. b4
{[%clk 00:50:51]} {[%emt 00:04:36]} axb4 {[%clk 00:45:01]} {[%emt 00:01:01]} 19.
Qxb4 {[%clk 00:47:56]} {[%emt 00:03:25]} Qxb4 {[%clk 00:42:42]} {[%emt
00:02:49]} 20. Nxb4 {[%clk 00:47:51]} {[%emt 00:00:35]} Rfd8 {[%clk 00:42:16]}
{[%emt 00:00:55]} 21. Kf2 {[%clk 00:27:58]} {[%emt 00:20:23]} f5 {[%clk
00:37:10]} {[%emt 00:05:36]} 22. Ke3 {[%clk 00:27:29]} {[%emt 00:00:59]} fxe4
{[%clk 00:36:20]} {[%emt 00:01:20]} 23. fxe4 {[%clk 00:27:54]} {[%emt
00:00:05]} Nf6 {[%clk 00:34:22]} {[%emt 00:02:28]} 24. Bf3 {[%clk 00:28:16]}
{[%emt 00:00:08]} g5 {[%clk 00:32:00]} {[%emt 00:02:51]} 25. h3 {[%clk
00:27:16]} {[%emt 00:01:31]} e5 {[%clk 00:26:12]} {[%emt 00:06:18]} 26. dxe5
{[%clk 00:17:09]} {[%emt 00:10:37]} Nd7 {[%clk 00:26:36]} {[%emt 00:00:05]} 27.
e6 {[%clk 00:16:34]} {[%emt 00:01:06]} Nc5 {[%clk 00:19:33]} {[%emt 00:07:32]}
28. e7 {[%clk 00:16:51]} {[%emt 00:00:13]} Re8 {[%clk 00:17:26]} {[%emt
00:02:38]} 29. Rac1 {[%clk 00:17:15]} {[%emt 00:00:06]} Rxa4 {[%clk 00:10:25]}
{[%emt 00:07:32]} 30. Rd8 {[%clk 00:16:12]} {[%emt 00:01:33]} 1-0

[Event "TePe Sigeman Chess Tournament 2026"]
[Site "Elite Plaza Hotel, Gustav Adolfs Torg 49, Malmo, Sweden"]
[Date "2026.05.05"]
[Round "5.2"]
[White "Grandelius, Nils"]
[Black "Abdusattorov, Nodirbek"]
[Result "1/2-1/2"]
[TimeControl "90 minutes for 40 moves + 30 minutes for the rest of the game + 30 seconds per move from move one."]
[WhiteTitle "GM"]
[BlackTitle "GM"]
[WhiteFideId "1710400"]
[BlackFideId "14204118"]
[WhiteElo "2662"]
[BlackElo "2780"]

1. d4 {[%clk 01:30:57]} {[%emt 00:00:02]} Nf6 {[%clk 01:30:40]} {[%emt
00:00:20]} 2. c4 {[%clk 01:31:14]} {[%emt 00:00:13]} e6 {[%clk 01:31:03]}
{[%emt 00:00:07]} 3. Nc3 {[%clk 01:31:37]} {[%emt 00:00:07]} d5 {[%clk
01:30:52]} {[%emt 00:00:42]} 4. Bg5 {[%clk 01:31:31]} {[%emt 00:00:36]} Be7
{[%clk 01:30:44]} {[%emt 00:00:38]} 5. e3 {[%clk 01:31:15]} {[%emt 00:00:47]}
h6 {[%clk 01:30:20]} {[%emt 00:00:54]} 6. Bxf6 {[%clk 01:30:47]} {[%emt
00:00:58]} Bxf6 {[%clk 01:30:44]} {[%emt 00:00:06]} 7. Nf3 {[%clk 01:31:10]}
{[%emt 00:00:06]} O-O {[%clk 01:30:47]} {[%emt 00:00:27]} 8. Rc1 {[%clk
01:31:08]} {[%emt 00:00:32]} a6 {[%clk 01:25:48]} {[%emt 00:05:29]} 9. Bd3
{[%clk 01:25:28]} {[%emt 00:06:10]} dxc4 {[%clk 01:24:48]} {[%emt 00:01:31]} 10.
Bxc4 {[%clk 01:25:53]} {[%emt 00:00:04]} Nd7 {[%clk 01:24:58]} {[%emt
00:00:19]} 11. Ne4 {[%clk 01:21:25]} {[%emt 00:04:58]} Be7 {[%clk 01:18:52]}
{[%emt 00:06:37]} 12. O-O {[%clk 01:18:36]} {[%emt 00:03:19]} b5 {[%clk
01:17:43]} {[%emt 00:01:39]} 13. Bd3 {[%clk 01:13:29]} {[%emt 00:05:37]} Bb7
{[%clk 01:18:02]} {[%emt 00:00:12]} 14. a4 {[%clk 01:06:08]} {[%emt 00:07:51]}
Rc8 {[%clk 01:10:09]} {[%emt 00:08:23]} 15. axb5 {[%clk 01:05:23]} {[%emt
00:01:15]} axb5 {[%clk 01:10:38]} {[%emt 00:00:02]} 16. Qe2 {[%clk 00:56:58]}
{[%emt 00:08:54]} c5 {[%clk 01:08:15]} {[%emt 00:02:53]} 17. dxc5 {[%clk
00:52:49]} {[%emt 00:04:39]} Nxc5 {[%clk 01:07:55]} {[%emt 00:00:50]} 18. Nxc5
{[%clk 00:52:34]} {[%emt 00:00:45]} Rxc5 {[%clk 01:08:17]} {[%emt 00:00:07]} 19.
Rxc5 {[%clk 00:52:36]} {[%emt 00:00:29]} Bxc5 {[%clk 01:08:45]} {[%emt
00:00:02]} 20. Bxb5 {[%clk 00:51:58]} {[%emt 00:01:09]} Bxf3 {[%clk 01:09:11]}
{[%emt 00:00:05]} 21. Qxf3 {[%clk 00:52:14]} {[%emt 00:00:13]} Qb6 {[%clk
01:09:34]} {[%emt 00:00:06]} 22. Qc6 {[%clk 00:52:09]} {[%emt 00:00:35]} Rb8
{[%clk 01:09:54]} {[%emt 00:00:10]} 23. Qxb6 {[%clk 00:52:34]} {[%emt
00:00:05]} Rxb6 {[%clk 01:10:21]} {[%emt 00:00:03]} 24. Bd3 {[%clk 00:52:56]}
{[%emt 00:00:08]} Rxb2 {[%clk 01:10:50]} {[%emt 00:00:02]} 25. Rb1 {[%clk
00:53:20]} {[%emt 00:00:06]} Rxb1+ {[%clk 01:11:18]} {[%emt 00:00:02]} 26. Bxb1
{[%clk 00:53:45]} {[%emt 00:00:05]} Bd6 {[%clk 01:11:47]} {[%emt 00:00:02]} 27.
Bc2 {[%clk 00:54:09]} {[%emt 00:00:05]} Bc5 {[%clk 01:12:15]} {[%emt 00:00:02]}
28. Bb1 {[%clk 00:54:35]} {[%emt 00:00:04]} Bd6 {[%clk 01:12:42]} {[%emt
00:00:03]} 29. Bc2 {[%clk 00:55:03]} {[%emt 00:00:02]} Bc5 {[%clk 01:13:07]}
{[%emt 00:00:05]} 1/2-1/2

[Event "TePe Sigeman Chess Tournament 2026"]
[Site "Elite Plaza Hotel, Gustav Adolfs Torg 49, Malmo, Sweden"]
[Date "2026.05.05"]
[Round "5.3"]
[White "Carlsen, Magnus"]
[Black "Zhu, Jiner"]
[Result "1-0"]
[TimeControl "90 minutes for 40 moves + 30 minutes for the rest of the game + 30 seconds per move from move one."]
[WhiteTitle "GM"]
[BlackTitle "GM"]
[WhiteFideId "1503014"]
[BlackFideId "8608059"]
[WhiteElo "2840"]
[BlackElo "2546"]

1. Nf3 {[%clk 01:30:26]} {[%emt 00:00:32]} d5 {[%clk 01:30:40]} {[%emt
00:00:21]} 2. g3 {[%clk 01:30:44]} {[%emt 00:00:11]} Nf6 {[%clk 01:30:58]}
{[%emt 00:00:12]} 3. Bg2 {[%clk 01:31:08]} {[%emt 00:00:06]} c5 {[%clk
01:30:45]} {[%emt 00:00:44]} 4. O-O {[%clk 01:30:15]} {[%emt 00:01:23]} g6
{[%clk 01:30:39]} {[%emt 00:00:36]} 5. d3 {[%clk 01:22:08]} {[%emt 00:08:37]}
Bg7 {[%clk 01:30:04]} {[%emt 00:01:05]} 6. Nbd2 {[%clk 01:20:06]} {[%emt
00:02:32]} Nc6 {[%clk 01:24:21]} {[%emt 00:06:13]} 7. e4 {[%clk 01:20:30]}
{[%emt 00:00:05]} O-O {[%clk 01:24:02]} {[%emt 00:00:49]} 8. Re1 {[%clk
01:20:30]} {[%emt 00:00:30]} d4 {[%clk 01:04:58]} {[%emt 00:19:34]} 9. e5
{[%clk 01:08:41]} {[%emt 00:12:18]} Nd5 {[%clk 01:05:15]} {[%emt 00:00:13]} 10.
a4 {[%clk 01:08:35]} {[%emt 00:00:36]} h6 {[%clk 00:58:48]} {[%emt 00:06:57]}
11. Nc4 {[%clk 01:06:54]} {[%emt 00:02:11]} Be6 {[%clk 00:56:39]} {[%emt
00:02:38]} 12. Bd2 {[%clk 00:46:11]} {[%emt 00:21:13]} Nb6 {[%clk 00:39:55]}
{[%emt 00:17:14]} 13. b3 {[%clk 00:37:23]} {[%emt 00:09:16]} Nd5 {[%clk
00:36:32]} {[%emt 00:03:53]} 14. Nh4 {[%clk 00:25:56]} {[%emt 00:11:58]} g5
{[%clk 00:30:26]} {[%emt 00:06:36]} 15. Nf3 {[%clk 00:26:20]} {[%emt 00:00:05]}
Qd7 {[%clk 00:30:23]} {[%emt 00:00:33]} 16. h4 {[%clk 00:26:05]} {[%emt
00:00:45]} g4 {[%clk 00:21:24]} {[%emt 00:09:30]} 17. Nh2 {[%clk 00:26:19]}
{[%emt 00:00:14]} h5 {[%clk 00:20:29]} {[%emt 00:01:25]} 18. Qc1 {[%clk
00:15:55]} {[%emt 00:10:55]} f6 {[%clk 00:17:28]} {[%emt 00:03:31]} 19. Bh6
{[%clk 00:15:41]} {[%emt 00:00:43]} Rf7 {[%clk 00:16:07]} {[%emt 00:01:51]} 20.
f3 {[%clk 00:14:15]} {[%emt 00:01:55]} Bh8 {[%clk 00:13:04]} {[%emt 00:03:33]}
21. exf6 {[%clk 00:12:09]} {[%emt 00:02:37]} Bxf6 {[%clk 00:11:41]} {[%emt
00:01:53]} 22. fxg4 {[%clk 00:11:19]} {[%emt 00:01:21]} hxg4 {[%clk 00:12:06]}
{[%emt 00:00:05]} 23. Bg5 {[%clk 00:10:08]} {[%emt 00:01:41]} Bh8 {[%clk
00:10:59]} {[%emt 00:01:36]} 24. Nf1 {[%clk 00:08:50]} {[%emt 00:01:47]} Nc3
{[%clk 00:09:15]} {[%emt 00:02:15]} 25. Nfd2 {[%clk 00:07:51]} {[%emt
00:01:28]} Bd5 {[%clk 00:08:32]} {[%emt 00:01:13]} 26. Ne4 {[%clk 00:07:07]}
{[%emt 00:01:14]} Bxe4 {[%clk 00:04:27]} {[%emt 00:04:36]} 27. Bxe4 {[%clk
00:07:30]} {[%emt 00:00:07]} Raf8 {[%clk 00:04:35]} {[%emt 00:00:22]} 28. Bh6
{[%clk 00:05:31]} {[%emt 00:02:28]} Qc7 {[%clk 00:03:01]} {[%emt 00:02:04]} 29.
Qg5+ {[%clk 00:02:46]} {[%emt 00:03:15]} Rg7 {[%clk 00:03:09]} {[%emt
00:00:22]} 30. Bxg7 {[%clk 00:02:45]} {[%emt 00:00:31]} Qxg3+ {[%clk 00:03:29]}
{[%emt 00:00:11]} 31. Bg2 {[%clk 00:02:55]} {[%emt 00:00:19]} Bxg7 {[%clk
00:03:32]} {[%emt 00:00:26]} 32. Kh1 {[%clk 00:00:54]} {[%emt 00:02:32]} Rf2
{[%clk 00:02:46]} {[%emt 00:01:16]} 33. Rg1 {[%clk 00:01:18]} {[%emt 00:00:05]}
e6 {[%clk 00:00:54]} {[%emt 00:02:23]} 34. Raf1 {[%clk 00:00:49]} {[%emt
00:00:59]} Ne2 {[%clk 00:01:03]} {[%emt 00:00:21]} 35. Rxf2 {[%clk 00:01:10]}
{[%emt 00:00:09]} Qxf2 {[%clk 00:01:29]} {[%emt 00:00:03]} 36. Ra1 {[%clk
00:01:26]} {[%emt 00:00:15]} Ng3+ {[%clk 00:00:33]} {[%emt 00:01:26]} 37. Kh2
{[%clk 00:01:52]} {[%emt 00:00:03]} Nf5 {[%clk 00:00:41]} {[%emt 00:00:22]} 38.
Qxg4 {[%clk 00:01:57]} {[%emt 00:00:24]} Qxc2 {[%clk 00:00:49]} {[%emt
00:00:23]} 39. Re1 {[%clk 00:01:44]} {[%emt 00:00:43]} Nd8 {[%clk 00:00:50]}
{[%emt 00:00:30]} 40. Re2 {[%clk 00:01:16]} {[%emt 00:00:56]} Qxd3 {[%clk
00:00:42]} {[%emt 00:00:39]} 41. Be4 {[%clk 00:29:13]} {[%emt 00:02:33]} 1-0

[Event "TePe Sigeman Chess Tournament 2026"]
[Site "Elite Plaza Hotel, Gustav Adolfs Torg 49, Malmo, Sweden"]
[Date "2026.05.05"]
[Round "5.4"]
[White "Woodward, Andy"]
[Black "Erdogmus, Yagiz Kaan"]
[Result "1/2-1/2"]
[TimeControl "90 minutes for 40 moves + 30 minutes for the rest of the game + 30 seconds per move from move one."]
[WhiteTitle "GM"]
[BlackTitle "GM"]
[WhiteFideId "30953499"]
[BlackFideId "44599790"]
[WhiteElo "2635"]
[BlackElo "2708"]

1. d4 {[%clk 01:30:56]} {[%emt 00:00:03]} e6 {[%clk 01:30:55]} {[%emt
00:00:05]} 2. c4 {[%clk 01:31:07]} {[%emt 00:00:20]} b6 {[%clk 01:31:20]}
{[%emt 00:00:05]} 3. a3 {[%clk 01:29:24]} {[%emt 00:02:13]} Bb7 {[%clk
01:31:32]} {[%emt 00:00:18]} 4. Nc3 {[%clk 01:29:44]} {[%emt 00:00:10]} Nf6
{[%clk 01:31:43]} {[%emt 00:00:19]} 5. Nf3 {[%clk 01:30:03]} {[%emt 00:00:11]}
Ne4 {[%clk 01:31:00]} {[%emt 00:01:14]} 6. Nxe4 {[%clk 01:29:06]} {[%emt
00:01:26]} Bxe4 {[%clk 01:31:28]} {[%emt 00:00:02]} 7. Bf4 {[%clk 01:23:34]}
{[%emt 00:06:02]} Be7 {[%clk 01:19:18]} {[%emt 00:12:40]} 8. e3 {[%clk
01:23:04]} {[%emt 00:01:00]} a5 {[%clk 01:10:57]} {[%emt 00:08:52]} 9. h4
{[%clk 01:10:41]} {[%emt 00:12:52]} d6 {[%clk 00:46:10]} {[%emt 00:25:18]} 10.
Bd3 {[%clk 00:55:03]} {[%emt 00:16:07]} Bxd3 {[%clk 00:45:45]} {[%emt
00:00:55]} 11. Qxd3 {[%clk 00:55:25]} {[%emt 00:00:08]} Nd7 {[%clk 00:42:40]}
{[%emt 00:03:35]} 12. Rd1 {[%clk 00:47:15]} {[%emt 00:08:40]} O-O {[%clk
00:29:36]} {[%emt 00:13:34]} 13. Qc2 {[%clk 00:41:23]} {[%emt 00:06:21]} Qe8
{[%clk 00:22:45]} {[%emt 00:07:22]} 14. e4 {[%clk 00:31:40]} {[%emt 00:10:13]}
a4 {[%clk 00:17:38]} {[%emt 00:05:38]} 15. e5 {[%clk 00:28:30]} {[%emt
00:03:39]} f5 {[%clk 00:12:26]} {[%emt 00:05:42]} 16. exd6 {[%clk 00:21:19]}
{[%emt 00:07:41]} Bxd6 {[%clk 00:12:36]} {[%emt 00:00:20]} 17. Qc1 {[%clk
00:19:31]} {[%emt 00:02:17]} e5 {[%clk 00:10:30]} {[%emt 00:02:36]} 18. dxe5
{[%clk 00:19:54]} {[%emt 00:00:07]} Nxe5 {[%clk 00:10:52]} {[%emt 00:00:08]} 19.
Nxe5 {[%clk 00:19:34]} {[%emt 00:00:50]} Bxe5 {[%clk 00:11:18]} {[%emt
00:00:04]} 20. O-O {[%clk 00:19:57]} {[%emt 00:00:07]} Bxf4 {[%clk 00:08:43]}
{[%emt 00:03:05]} 21. Qxf4 {[%clk 00:20:24]} {[%emt 00:00:02]} Qf7 {[%clk
00:08:39]} {[%emt 00:00:34]} 22. Rfe1 {[%clk 00:17:47]} {[%emt 00:03:07]} Rad8
{[%clk 00:04:07]} {[%emt 00:05:02]} 23. Rxd8 {[%clk 00:18:17]} Rxd8 {[%clk
00:05:05]} {[%emt 00:01:16]} 24. Re5 {[%clk 00:17:52]} {[%emt 00:00:10]} g6
{[%clk 00:03:37]} {[%emt 00:01:59]} 25. c5 {[%clk 00:17:13]} {[%emt 00:01:09]}
Re8 {[%clk 00:01:48]} {[%emt 00:02:19]} 26. cxb6 {[%clk 00:15:43]} {[%emt
00:02:00]} cxb6 {[%clk 00:02:14]} {[%emt 00:00:04]} 27. Rxe8+ {[%clk 00:14:09]}
{[%emt 00:02:04]} Qxe8 {[%clk 00:02:43]} {[%emt 00:00:01]} 28. Qc4+ {[%clk
00:14:32]} {[%emt 00:00:07]} Kf8 {[%clk 00:02:11]} {[%emt 00:01:03]} 29. Qd4
{[%clk 00:15:00]} {[%emt 00:00:01]} b5 {[%clk 00:00:58]} {[%emt 00:01:43]} 30.
Qh8+ {[%clk 00:15:24]} {[%emt 00:00:06]} Kf7 {[%clk 00:01:25]} {[%emt
00:00:03]} 31. Qxh7+ {[%clk 00:15:20]} {[%emt 00:00:33]} Kf6 {[%clk 00:01:54]}
32. Kh2 {[%clk 00:12:20]} {[%emt 00:03:30]} Qe5+ {[%clk 00:01:15]} {[%emt
00:01:09]} 33. Kh3 {[%clk 00:12:14]} {[%emt 00:00:35]} Qc5 {[%clk 00:00:37]}
{[%emt 00:01:09]} 34. Qh8+ {[%clk 00:10:17]} {[%emt 00:02:27]} Kf7 {[%clk
00:01:02]} {[%emt 00:00:06]} 35. f3 {[%clk 00:10:10]} {[%emt 00:00:36]} b4
{[%clk 00:00:35]} {[%emt 00:00:57]} 36. axb4 {[%clk 00:09:43]} {[%emt
00:00:57]} Qxb4 {[%clk 00:00:50]} {[%emt 00:00:15]} 37. Qe5 {[%clk 00:09:37]}
{[%emt 00:00:36]} a3 {[%clk 00:00:34]} {[%emt 00:00:47]} 38. bxa3 {[%clk
00:09:54]} {[%emt 00:00:13]} Qxa3 {[%clk 00:01:02]} 39. h5 {[%clk 00:09:59]}
{[%emt 00:00:24]} Qc1 {[%clk 00:01:00]} {[%emt 00:00:32]} 40. hxg6+ {[%clk
00:03:44]} {[%emt 00:06:45]} Kxg6 {[%clk 00:01:29]} {[%emt 00:00:01]} 41. f4
{[%clk 00:03:36]} {[%emt 00:00:38]} Qc6 {[%clk 00:27:30]} {[%emt 00:04:28]} 42.
Qh8 {[%clk 00:29:53]} {[%emt 00:04:14]} Qe6 {[%clk 00:26:20]} {[%emt 00:01:41]}
43. Qh4 {[%clk 00:30:08]} {[%emt 00:00:14]} Qe4 {[%clk 00:25:29]} {[%emt
00:01:20]} 44. Qg3+ {[%clk 00:29:11]} {[%emt 00:01:28]} Kh7 {[%clk 00:25:22]}
{[%emt 00:00:37]} 45. Kh2 {[%clk 00:29:04]} {[%emt 00:00:37]} Kh6 {[%clk
00:25:16]} {[%emt 00:00:36]} 46. Qg5+ {[%clk 00:28:31]} {[%emt 00:01:03]} Kh7
{[%clk 00:25:45]} {[%emt 00:00:02]} 47. Qh4+ {[%clk 00:28:35]} {[%emt
00:00:25]} Kg6 {[%clk 00:25:28]} {[%emt 00:00:47]} 48. Kh3 {[%clk 00:28:59]}
{[%emt 00:00:06]} Kg7 {[%clk 00:25:13]} {[%emt 00:00:45]} 49. Qf2 {[%clk
00:29:23]} {[%emt 00:00:05]} Kg6 {[%clk 00:24:16]} {[%emt 00:01:27]} 50. Qd2
{[%clk 00:28:48]} {[%emt 00:01:05]} Kh6 {[%clk 00:21:45]} {[%emt 00:03:02]} 51.
Qd6+ {[%clk 00:27:14]} {[%emt 00:02:04]} Kh5 {[%clk 00:21:34]} {[%emt
00:00:41]} 52. Kh2 {[%clk 00:27:36]} {[%emt 00:00:08]} Qa4 {[%clk 00:14:31]}
{[%emt 00:07:33]} 53. Qd2 {[%clk 00:22:51]} {[%emt 00:05:15]} Qe4 {[%clk
00:14:35]} {[%emt 00:00:26]} 54. Qd1+ {[%clk 00:22:15]} {[%emt 00:01:06]} Kg6
{[%clk 00:14:35]} {[%emt 00:00:31]} 55. Qd6+ {[%clk 00:22:44]} {[%emt
00:00:02]} Kh7 {[%clk 00:13:11]} {[%emt 00:01:54]} 56. Qe5 {[%clk 00:22:58]}
{[%emt 00:00:15]} Qc2 {[%clk 00:13:09]} {[%emt 00:00:32]} 57. Qf6 {[%clk
00:20:15]} {[%emt 00:03:13]} Qe4 {[%clk 00:12:57]} {[%emt 00:00:42]} 58. Qe5
{[%clk 00:19:27]} {[%emt 00:01:17]} Qc2 {[%clk 00:13:22]} {[%emt 00:00:05]} 59.
Qe6 {[%clk 00:16:30]} {[%emt 00:03:26]} Kg7 {[%clk 00:11:12]} {[%emt 00:02:42]}
60. Kh3 {[%clk 00:16:24]} {[%emt 00:00:36]} Qb1 {[%clk 00:09:52]} {[%emt
00:01:50]} 61. Qd7+ {[%clk 00:14:36]} {[%emt 00:02:18]} Kg6 {[%clk 00:06:31]}
{[%emt 00:03:52]} 62. Qc6+ {[%clk 00:13:53]} {[%emt 00:01:13]} Kh5 {[%clk
00:06:22]} {[%emt 00:00:39]} 63. Qe8+ {[%clk 00:13:05]} {[%emt 00:01:17]} Kh6
{[%clk 00:06:51]} {[%emt 00:00:01]} 64. Kg3 {[%clk 00:11:32]} {[%emt 00:02:03]}
Kg7 {[%clk 00:06:28]} {[%emt 00:00:54]} 65. Qd7+ {[%clk 00:11:26]} {[%emt
00:00:36]} Kg6 {[%clk 00:06:53]} {[%emt 00:00:06]} 66. Qc6+ {[%clk 00:11:04]}
{[%emt 00:00:51]} Kh5 {[%clk 00:06:53]} {[%emt 00:00:30]} 67. Qe8+ {[%clk
00:08:21]} {[%emt 00:03:13]} Kh6 {[%clk 00:07:22]} 68. Qe7 {[%clk 00:07:21]}
{[%emt 00:01:29]} Kg6 {[%clk 00:07:14]} {[%emt 00:00:38]} 69. Qe6+ {[%clk
00:06:37]} {[%emt 00:01:14]} Kg7 {[%clk 00:07:30]} {[%emt 00:00:14]} 70. Kh2
{[%clk 00:06:05]} {[%emt 00:01:02]} Qc2 {[%clk 00:07:32]} {[%emt 00:00:28]} 71.
Qd7+ {[%clk 00:04:41]} {[%emt 00:01:53]} Kg6 {[%clk 00:07:44]} {[%emt
00:00:18]} 72. Qd6+ {[%clk 00:02:57]} {[%emt 00:02:14]} Kg7 {[%clk 00:07:44]}
{[%emt 00:00:31]} 73. Kh3 {[%clk 00:02:34]} {[%emt 00:00:53]} Qb1 {[%clk
00:07:56]} {[%emt 00:00:18]} 74. Qe6 {[%clk 00:01:26]} {[%emt 00:01:36]} Kh7
{[%clk 00:06:55]} {[%emt 00:01:33]} 75. Qf7+ {[%clk 00:00:41]} {[%emt
00:01:14]} Kh6 {[%clk 00:07:11]} {[%emt 00:00:12]} 76. Qf6+ {[%clk 00:00:59]}
{[%emt 00:00:14]} Kh7 {[%clk 00:07:40]} {[%emt 00:00:01]} 77. Kh2 {[%clk
00:00:59]} {[%emt 00:00:29]} Qe4 {[%clk 00:07:48]} {[%emt 00:00:21]} 78. Qh4+
{[%clk 00:00:56]} {[%emt 00:00:34]} Kg6 {[%clk 00:08:05]} {[%emt 00:00:12]} 79.
Kh3 {[%clk 00:01:25]} {[%emt 00:00:02]} Qb1 {[%clk 00:07:57]} {[%emt 00:00:38]}
80. Qg3+ {[%clk 00:01:05]} {[%emt 00:00:50]} Kh6 {[%clk 00:08:02]} {[%emt
00:00:25]} 81. Qc3 {[%clk 00:01:10]} {[%emt 00:00:24]} Kg6 {[%clk 00:07:35]}
{[%emt 00:00:58]} 82. Kh4 {[%clk 00:01:26]} {[%emt 00:00:13]} Qh1+ {[%clk
00:06:20]} {[%emt 00:01:45]} 83. Qh3 {[%clk 00:01:53]} {[%emt 00:00:03]} Qa1
{[%clk 00:06:30]} {[%emt 00:00:20]} 84. Qg3+ {[%clk 00:02:14]} {[%emt
00:00:09]} Kh7 {[%clk 00:06:45]} {[%emt 00:00:16]} 85. Kh5 {[%clk 00:00:40]}
{[%emt 00:02:03]} Qa6 {[%clk 00:06:12]} {[%emt 00:01:03]} 86. Qg5 {[%clk
00:01:04]} {[%emt 00:00:06]} Qe2+ {[%clk 00:05:51]} {[%emt 00:00:51]} 87. Kh4
{[%clk 00:01:31]} {[%emt 00:00:02]} Qe1+ {[%clk 00:06:00]} {[%emt 00:00:22]} 88.
Kh3 {[%clk 00:01:06]} {[%emt 00:00:55]} Qh1+ {[%clk 00:06:08]} {[%emt
00:00:21]} 89. Kg3 {[%clk 00:01:34]} {[%emt 00:00:02]} Qe1+ {[%clk 00:06:35]}
{[%emt 00:00:04]} 90. Kh2 {[%clk 00:01:59]} {[%emt 00:00:06]} Qb1 {[%clk
00:06:54]} {[%emt 00:00:09]} 91. g3 {[%clk 00:01:53]} {[%emt 00:00:37]} Qa2+
{[%clk 00:02:07]} {[%emt 00:05:18]} 92. Kh3 {[%clk 00:02:20]} {[%emt 00:00:02]}
Qe6 {[%clk 00:01:47]} {[%emt 00:00:49]} 93. Qd8 {[%clk 00:01:11]} {[%emt
00:01:39]} Qh6+ {[%clk 00:01:25]} {[%emt 00:00:52]} 94. Kg2 {[%clk 00:01:34]}
{[%emt 00:00:06]} Qc6+ {[%clk 00:01:54]} {[%emt 00:00:01]} 95. Kh2 {[%clk
00:01:55]} {[%emt 00:00:09]} Qh6+ {[%clk 00:02:05]} {[%emt 00:00:20]} 96. Kg1
{[%clk 00:02:20]} {[%emt 00:00:05]} Qe6 {[%clk 00:02:04]} {[%emt 00:00:31]} 97.
Qc7+ {[%clk 00:02:19]} {[%emt 00:00:31]} Kg6 {[%clk 00:02:28]} {[%emt
00:00:06]} 98. Qc3 {[%clk 00:01:59]} {[%emt 00:00:49]} Qe2 {[%clk 00:02:01]}
{[%emt 00:00:58]} 99. Qc6+ {[%clk 00:02:23]} {[%emt 00:00:06]} Kf7 {[%clk
00:01:59]} {[%emt 00:00:32]} 100. Qd5+ {[%clk 00:02:44]} {[%emt 00:00:09]} Kf6
{[%clk 00:02:27]} {[%emt 00:00:02]} 101. Qd6+ {[%clk 00:03:03]} {[%emt
00:00:12]} Kf7 {[%clk 00:02:55]} {[%emt 00:00:02]} 102. Qd7+ {[%clk 00:03:23]}
{[%emt 00:00:09]} Kf6 {[%clk 00:03:19]} {[%emt 00:00:07]} 103. Qd6+ {[%clk
00:03:49]} {[%emt 00:00:04]} Kf7 {[%clk 00:03:45]} {[%emt 00:00:04]} 104. Qd7+
{[%clk 00:04:15]} {[%emt 00:00:04]} 1/2-1/2